bitfinex/quotes_BTCUSD_20240605
["timestamp","ask_amount","ask_price","bid_price","bid_amount"]
[1717625128741,0.00286,71219.0,71218.0,0.009]
[1717625129137,0.00486,71219.0,71218.0,0.009]
[1717625129340,0.00386,71219.0,71215.0,0.0791625]
[1717625129544,0.00386,71219.0,71214.0,0.3]
[1717625129545,0.01786,71219.0,71216.0,0.05446236]
[1717625130147,0.00386,71219.0,71216.0,0.05446236]
[1717625130791,0.00086,71219.0,71216.0,0.05446236]
[1717625131614,0.01486,71219.0,71218.0,0.001]
[1717625131790,0.02886,71219.0,71218.0,0.001]
[1717625132002,0.01486,71219.0,71218.0,0.05102624]
[1717625132206,0.00086,71219.0,71218.0,0.05102624]
[1717625132584,0.01486,71219.0,71218.0,0.05102624]
[1717625132775,0.02886,71219.0,71218.0,0.05102624]
[1717625133195,0.01486,71219.0,71218.0,0.05102624]
[1717625133568,0.02886,71219.0,71218.0,0.05202624]
[1717625133947,0.01486,71219.0,71218.0,0.05202624]
[1717625134841,0.01486,71219.0,71218.0,0.25302624]
[1717625135051,0.02886,71219.0,71218.0,0.05302624]
[1717625135666,0.02886,71219.0,71218.0,0.25302624]
[1717625136061,0.02886,71219.0,71218.0,0.05302624]
[1717625136722,0.02886,71219.0,71218.0,0.58153924]
[1717625136857,0.02886,71219.0,71218.0,0.51343924]
[1717625137061,0.02886,71219.0,71218.0,0.48153924]
[1717625137262,0.02886,71219.0,71218.0,0.58153924]
[1717625137845,0.02886,71219.0,71218.0,0.58053924]
[1717625137846,0.01486,71219.0,71218.0,0.58053924]
[1717625138053,0.01586,71219.0,71218.0,0.52043924]
[1717625138330,0.00186,71219.0,71218.0,0.51143924]
[1717625138547,0.00286,71219.0,71218.0,0.52143924]
[1717625138947,0.00186,71219.0,71218.0,1.27508517]
[1717625139184,0.00186,71219.0,71218.0,1.28308517]
[1717625139403,0.00286,71219.0,71218.0,1.28808517]
[1717625139901,0.00286,71219.0,71218.0,1.28308517]
[1717625140297,0.00286,71219.0,71218.0,1.29308517]
[1717625140499,0.00086,71219.0,71218.0,1.28508517]
[1717625141384,0.00186,71219.0,71218.0,1.28308517]
[1717625141589,0.00186,71219.0,71218.0,1.29308517]
[1717625142036,0.00186,71219.0,71218.0,1.29208517]
[1717625142270,0.00286,71219.0,71218.0,1.29808517]
[1717625142475,0.00286,71219.0,71218.0,1.29108517]
[1717625142866,0.00186,71219.0,71218.0,1.28508517]
[1717625143215,0.00286,71219.0,71218.0,1.29508517]
[1717625143637,0.00386,71219.0,71218.0,1.30708517]
[1717625144105,0.00186,71219.0,71218.0,1.29508517]
[1717625144292,0.00286,71219.0,71218.0,1.30608517]
[1717625152381,0.00286,71219.0,71218.0,1.58691217]
[1717625155114,0.00286,71219.0,71218.0,1.96773917]
[1717625155943,0.00186,71219.0,71218.0,1.95773917]
[1717625156343,0.00286,71219.0,71218.0,1.97073917]
[1717625156552,0.00186,71219.0,71218.0,1.95973917]
[1717625156971,0.00186,71219.0,71218.0,1.97373917]
[1717625157221,0.00186,71219.0,71218.0,2.14403917]
[1717625159874,0.00186,71219.0,71218.0,2.04183917]
[1717625161611,0.00186,71219.0,71218.0,2.24183917]
[1717625161809,0.00186,71219.0,71218.0,2.04183917]
[1717625162022,0.00186,71219.0,71218.0,1.97373917]
[1717625162232,0.00186,71219.0,71218.0,2.04183917]
[1717625162462,0.00086,71219.0,71218.0,2.02883917]
[1717625162954,0.00186,71219.0,71218.0,2.04283917]
[1717625163283,0.00086,71219.0,71218.0,2.02883917]
[1717625163508,0.00086,71219.0,71218.0,2.01483917]
[1717625163710,0.00086,71219.0,71218.0,2.02883917]
[1717625164542,0.00086,71219.0,71218.0,1.96073917]
[1717625164759,0.00086,71219.0,71218.0,1.66991217]
[1717625164974,0.00086,71219.0,71218.0,1.75201217]
[1717625165832,0.00086,71219.0,71218.0,1.73801217]
[1717625166277,0.00086,71219.0,71218.0,1.76201217]
[1717625166479,0.00086,71219.0,71218.0,1.74801217]
[1717625166901,0.002,71229.0,71228.0,0.841182]
[1717625167127,0.002,71229.0,71228.0,1.29880093]
[1717625168647,0.002,71229.0,71228.0,1.30580093]
[1717625169644,0.002,71229.0,71228.0,1.31080093]
[1717625173243,0.002,71229.0,71228.0,1.03001293]
[1717625173458,0.002,71229.0,71228.0,1.08447529]
[1717625173693,0.002,71229.0,71228.0,1.04627529]
[1717625174451,0.002,71229.0,71228.0,1.32706329]
[1717625175081,0.002,71229.0,71228.0,1.62785129]
[1717625175909,0.002,71229.0,71228.0,1.62285129]
[1717625176358,0.002,71229.0,71228.0,1.63585129]
[1717625176760,0.002,71229.0,71228.0,1.72885129]
[1717625177634,0.002,71229.0,71228.0,1.67475129]
[1717625177839,0.002,71229.0,71228.0,1.72885129]
[1717625178122,0.002,71229.0,71228.0,1.74285129]
[1717625178324,0.002,71229.0,71228.0,1.67475129]
[1717625178551,0.002,71229.0,71228.0,1.74285129]
[1717625178744,0.002,71229.0,71228.0,1.72985129]
[1717625179135,0.002,71229.0,71228.0,1.74385129]
[1717625186743,0.002,71229.0,71228.0,1.68561029]
[1717625188054,0.002,71229.0,71228.0,1.59751029]
[1717625188278,0.002,71229.0,71228.0,1.07162229]
[1717625188747,0.002,71229.0,71228.0,0.96162229]
[1717625188985,0.002,71229.0,71228.0,0.97162229]
[1717625189767,0.002,71229.0,71228.0,0.95762229]
[1717625189990,0.002,71229.0,71228.0,0.94362229]
[1717625190201,0.002,71229.0,71228.0,0.95562229]
[1717625190420,0.002,71229.0,71228.0,0.96862229]
[1717625191050,0.002,71229.0,71228.0,0.98062229]
[1717625191455,0.002,71229.0,71228.0,0.96862229]
[1717625191678,0.002,71229.0,71228.0,0.95862229]
[1717625191885,0.002,71229.0,71228.0,0.96862229]
[1717625192529,0.002,71229.0,71228.0,0.97862229]
[1717625192928,0.002,71229.0,71228.0,0.135]
[1717625193136,0.0955,71229.0,71228.0,0.248559]
[1717625193357,0.0955,71229.0,71228.0,0.498953]
[1717625193567,0.002,71229.0,71228.0,0.64337193]
[1717625193777,0.002,71229.0,71228.0,0.71225912]
[1717625194210,0.002,71229.0,71228.0,0.71825912]
[1717625194412,0.002,71229.0,71228.0,0.71225912]
[1717625194619,0.002,71229.0,71228.0,0.70225912]
[1717625195060,0.002,71229.0,71228.0,0.71325912]
[1717625195492,0.002,71229.0,71228.0,0.70725912]
[1717625195886,0.002,71229.0,71228.0,0.71125912]
[1717625196303,0.002,71229.0,71228.0,0.70625912]
[1717625196717,0.002,71229.0,71228.0,0.71125912]
[1717625197317,0.002,71229.0,71228.0,0.70125912]
[1717625197957,0.002,71229.0,71228.0,0.71125912]
[1717625198178,0.002,71229.0,71228.0,0.48770012]
[1717625198398,0.002,71229.0,71228.0,0.109]
[1717625198611,0.0955,71229.0,71228.0,0.109]
[1717625198841,0.1736,71229.0,71228.0,0.009]
[1717625199094,0.20560716,71229.0,71228.0,0.009]
[1717625199324,0.21563926,71229.0,71228.0,0.009]
[1717625199748,0.21563926,71229.0,71228.0,0.005]
[1717625199950,0.1736,71229.0,71228.0,0.005]
[1717625200202,0.77300905,71229.0,71228.0,0.005]
[1717625200428,1.17043894,71229.0,71228.0,0.005]
[1717625200633,0.1035,71218.0,71212.0,0.43336945]
[1717625200844,0.01,71217.0,71212.0,0.43336945]
[1717625201048,0.20363372,71218.0,71210.0,0.113559]
[1717625201251,0.20363372,71218.0,71212.0,0.113559]
[1717625201460,0.1616,71218.0,71211.0,0.113559]
[1717625202302,0.1716,71218.0,71210.0,0.113559]
[1717625202499,0.0935,71218.0,71212.0,0.113559]
[1717625202713,0.1616,71218.0,71210.0,0.05381102]
[1717625202941,0.01,71216.0,71210.0,0.05381102]
[1717625203140,0.1616,71218.0,71210.0,0.16737002]
[1717625203340,0.1716,71218.0,71210.0,0.16737002]
[1717625203551,0.01,71217.0,71210.0,0.16737002]
[1717625203768,0.01,71216.0,71211.0,0.113559]
[1717625204199,0.1626,71218.0,71212.0,0.17275653]
[1717625204412,0.1726,71218.0,71212.0,0.17275653]
[1717625204618,0.01,71216.0,71212.0,0.17275653]
[1717625204817,0.01,71216.0,71212.0,0.001]
[1717625205646,0.01,71216.0,71209.0,0.21265924]
[1717625205847,0.1616,71218.0,71211.0,0.113559]
[1717625206049,0.1716,71218.0,71212.0,0.113559]
[1717625206252,0.1716,71218.0,71212.0,0.114505]
[1717625206496,0.1716,71218.0,71212.0,0.16831602]
[1717625206841,0.1626,71218.0,71213.0,0.113559]
[1717625207446,0.01,71215.0,71212.0,0.001946]
[1717625207647,0.01,71215.0,71212.0,0.000946]
[1717625208013,0.0945,71218.0,71213.0,0.001]
[1717625208227,0.0945,71218.0,71214.0,0.03381642]
[1717625208637,0.001,71215.0,71214.0,0.03381642]
[1717625208840,0.001,71215.0,71213.0,0.113559]
[1717625209428,0.001,71215.0,71212.0,0.114505]
[1717625209634,0.001,71215.0,71214.0,0.001]
[1717625210042,0.001,71215.0,71212.0,0.114505]
[1717625210507,0.1035,71218.0,71212.0,0.114505]
[1717625210687,0.0945,71218.0,71214.0,0.001]
[1717625211100,0.0945,71218.0,71213.0,0.113559]
[1717625211101,0.0935,71218.0,71213.0,0.113559]
[1717625211557,0.001,71215.0,71213.0,0.113559]
[1717625211727,0.1035,71218.0,71213.0,0.113559]
[1717625211957,0.1035,71218.0,71212.0,0.114505]
[1717625212091,0.1035,71218.0,71213.0,0.05371642]
[1717625212301,0.0935,71218.0,71213.0,0.05371642]
[1717625212507,0.1035,71218.0,71213.0,0.05371642]
[1717625213113,0.1045,71218.0,71214.0,0.001]
[1717625213682,0.1045,71218.0,71213.0,0.05371642]
[1717625213683,0.1035,71218.0,71213.0,0.05371642]
[1717625213888,0.01,71217.0,71213.0,0.05471642]
[1717625214106,0.1045,71218.0,71213.0,0.05471642]
[1717625214269,0.1045,71218.0,71214.0,0.03918807]
[1717625214482,0.01,71217.0,71214.0,0.04018807]
[1717625214687,0.01,71217.0,71214.0,0.03918807]
[1717625215044,0.01,71215.0,71213.0,0.001]
[1717625215474,0.01,71215.0,71212.0,0.000946]
[1717625216476,0.001,71217.0,71213.0,0.113559]
[1717625217003,0.1035,71218.0,71213.0,0.113559]
[1717625217205,0.001,71217.0,71213.0,0.113559]
[1717625217413,0.001,71217.0,71214.0,0.03371642]
[1717625217589,0.011,71217.0,71214.0,0.03371642]
[1717625217811,0.012,71217.0,71214.0,0.03371642]
[1717625217994,0.012,71217.0,71213.0,0.113559]
[1717625218615,0.01,71217.0,71213.0,0.113559]
[1717625219379,0.01,71217.0,71213.0,0.114559]
[1717625219792,0.01,71217.0,71213.0,0.113559]
[1717625220000,0.011,71217.0,71212.0,0.114505]
[1717625220233,0.001,71217.0,71213.0,0.16727542]
[1717625220672,0.01,71217.0,71213.0,0.05371642]
[1717625220851,0.1035,71218.0,71213.0,0.05371642]
[1717625220982,0.01,71217.0,71213.0,0.05371642]
[1717625221355,0.1035,71218.0,71213.0,0.16727542]
[1717625221939,0.0935,71218.0,71214.0,0.15264707]
[1717625222141,0.001,71217.0,71215.0,0.113559]
[1717625222617,0.011,71217.0,71214.0,0.03908807]
[1717625223292,0.01,71215.0,71214.0,0.001]
[1717625223499,0.218519,71215.0,71214.0,0.001]
[1717625223701,0.218519,71215.0,71213.0,0.001]
[1717625223702,0.0935,71215.0,71213.0,0.001]
[1717625223910,0.0935,71215.0,71213.0,0.01841742]
[1717625223911,0.1566,71215.0,71213.0,0.01841742]
[1717625224132,0.001,71218.0,71216.0,0.113559]
[1717625224336,0.001,71218.0,71217.0,0.07222824]
[1717625224750,0.01,71222.0,71217.0,0.07222824]
[1717625224954,0.01,71221.0,71217.0,0.07222824]
[1717625225151,0.01,71220.0,71218.0,0.00896457]
[1717625225354,0.01,71219.0,71218.0,0.00896457]
[1717625225558,0.01,71221.0,71218.0,0.00896457]
[1717625225986,0.07279962,71220.0,71218.0,0.00896457]
[1717625226204,0.01,71219.0,71218.0,0.00896457]
[1717625226412,0.08279962,71219.0,71218.0,0.00896457]
[1717625226988,0.01,71219.0,71218.0,0.00996457]
[1717625227439,0.08279908,71219.0,71218.0,0.00996457]
[1717625227612,0.08379908,71219.0,71218.0,0.01096457]
[1717625228015,0.07379908,71219.0,71218.0,0.01096457]
[1717625228422,0.07379908,71219.0,71218.0,0.00996457]
[1717625228589,0.07379908,71219.0,71218.0,0.01096457]
[1717625229805,0.08379908,71219.0,71218.0,0.01096457]
[1717625230227,0.08379908,71219.0,71218.0,0.002]
[1717625230510,0.13449908,71219.0,71218.0,0.002]
[1717625230684,0.20259908,71219.0,71218.0,0.002]
[1717625231513,0.38081008,71219.0,71218.0,0.002]
[1717625232269,0.38064111,71219.0,71218.0,0.002]
[1717625236471,0.42252347,71219.0,71218.0,0.002]
[1717625237096,0.23023011,71219.0,71218.0,0.002]
[1717625237496,0.07363011,71219.0,71218.0,0.002]
[1717625237699,0.07363011,71219.0,71218.0,0.53025072]
[1717625237947,0.07363011,71219.0,71218.0,0.38983772]
[1717625238133,0.001,71219.0,71218.0,0.38983772]
[1717625238559,0.001,71219.0,71218.0,0.37983772]
[1717625238757,0.140397,71227.0,71218.0,0.37883772]
[1717625238960,0.140397,71227.0,71219.0,0.17244277]
[1717625238961,0.150397,71227.0,71219.0,0.17244277]
[1717625239162,0.01,71226.0,71219.0,0.17244277]
[1717625239489,0.55229096,71229.0,71220.0,0.140409]
[1717625239840,0.150395,71228.0,71219.0,0.17244277]
[1717625240046,0.00286,71229.0,71221.0,0.32619424]
[1717625240254,0.07096,71229.0,71222.0,0.04460936]
[1717625240664,0.00286,71229.0,71225.0,0.113559]
[1717625240857,0.00286,71229.0,71227.0,0.2341]
[1717625241246,0.00286,71229.0,71224.0,0.2341]
[1717625241609,0.00286,71229.0,71225.0,0.01977872]
[1717625241821,0.01,71228.0,71224.0,0.2341]
[1717625242036,0.143252,71229.0,71224.0,0.2341]
[1717625242037,0.01,71227.0,71224.0,0.2341]
[1717625242654,0.01,71226.0,71224.0,0.2351]
[1717625242831,0.01,71226.0,71225.0,0.001]
[1717625243242,0.01,71225.0,71224.0,0.2341]
[1717625243463,0.01,71225.0,71224.0,0.30054966]
[1717625243663,0.01,71225.0,71224.0,0.06644966]
[1717625243891,0.0681,71225.0,71220.0,0.1]
[1717625244031,0.0681,71221.0,71220.0,0.1]
[1717625246295,0.0681,71221.0,71220.0,0.17222824]
[1717625246585,0.04202499,71222.0,71221.0,0.334067]
[1717625246792,0.08096,71229.0,71222.0,0.140405]
[1717625247033,0.04205032,71224.0,71222.0,0.140405]
[1717625247235,0.04205032,71226.0,71222.0,0.140405]
[1717625247440,0.04205032,71225.0,71223.0,0.05572743]
[1717625247650,0.11015032,71226.0,71223.0,0.05572743]
[1717625248670,0.12015032,71226.0,71223.0,0.05672743]
[1717625248850,0.01,71225.0,71223.0,0.05572743]
[1717625249003,0.01,71225.0,71224.0,0.03090557]
[1717625250399,0.01,71225.0,71224.0,0.03190557]
[1717625250599,0.11015032,71226.0,71224.0,0.03190557]
[1717625251229,0.11015032,71226.0,71224.0,0.03290557]
[1717625251423,0.11015032,71226.0,71224.0,0.03190557]
[1717625251632,0.11015032,71226.0,71225.0,0.03663885]
[1717625252646,0.0681,71226.0,71225.0,0.03663885]
[1717625253846,0.0681,71226.0,71225.0,0.03763885]
[1717625254246,0.0681,71226.0,71225.0,0.03863885]
[1717625257479,0.0781,71226.0,71225.0,0.03863885]
[1717625257632,0.0681,71226.0,71225.0,0.03863885]
[1717625262117,0.04203198,71227.0,71226.0,0.151]
[1717625262323,0.12013198,71227.0,71226.0,0.19510504]
[1717625262537,0.12013198,71227.0,71226.0,0.04410504]
[1717625262745,0.01,71226.0,71225.0,0.002]
[1717625263178,0.01,71226.0,71225.0,0.001]
[1717625264028,0.0985,71226.0,71225.0,0.001]
[1717625264252,0.01,71221.0,71220.0,0.1]
[1717625264477,0.0681,71221.0,71220.0,0.1]
[1717625264659,0.0781,71221.0,71220.0,0.1]
[1717625264883,0.0781,71221.0,71215.0,0.000946]
[1717625265112,0.0681,71216.0,71215.0,0.000946]
[1717625265808,0.0781,71216.0,71215.0,0.000946]
[1717625266247,0.0681,71216.0,71215.0,0.000946]
[1717625266473,0.0681,71216.0,71215.0,0.080946]
[1717625268861,0.0681,71219.0,71215.0,0.13275632]
[1717625269488,0.0681,71219.0,71215.0,0.24631532]
[1717625271092,0.0681,71219.0,71215.0,0.13275632]
[1717625271891,0.0681,71219.0,71215.0,0.24631532]
[1717625272679,0.0681,71219.0,71215.0,0.13275632]
[1717625273260,0.04203274,71219.0,71217.0,0.272459]
[1717625273481,0.0681,71219.0,71218.0,0.05874436]
[1717625274609,0.0681,71219.0,71217.0,0.272459]
[1717625274813,0.11013274,71219.0,71217.0,0.272459]
[1717625275598,0.11013274,71219.0,71218.0,0.001]
[1717625275813,0.11013274,71219.0,71217.0,0.1589]
[1717625276039,0.11013274,71219.0,71217.0,0.272459]
[1717625276252,0.11013274,71219.0,71218.0,0.05356332]
[1717625276846,0.11013274,71219.0,71218.0,0.05456332]
[1717625277604,0.11013274,71219.0,71218.0,0.001]
[1717625277833,0.11013274,71219.0,71218.0,0.002]
[1717625280271,0.0781,71219.0,71218.0,0.002]
[1717625281867,0.22964912,71219.0,71218.0,0.002]
[1717625283972,0.37006012,71219.0,71218.0,0.002]
[1717625284218,0.338911,71219.0,71218.0,0.002]
[1717625284420,0.7180438,71219.0,71218.0,0.002]
[1717625286742,0.8044848,71219.0,71218.0,0.002]
[1717625287197,0.6399438,71219.0,71218.0,0.002]
[1717625287408,0.6499438,71219.0,71218.0,0.002]
[1717625287620,0.7180438,71219.0,71218.0,0.002]
[1717625291308,0.8044848,71219.0,71218.0,0.002]
[1717625292142,0.6295438,71219.0,71218.0,0.002]
[1717625294049,0.73461808,71219.0,71218.0,0.002]
[1717625294873,0.7344491,71219.0,71218.0,0.002]
[1717625296897,0.6563491,71219.0,71218.0,0.1783146]
[1717625297114,0.37137887,71219.0,71218.0,0.1783146]
[1717625297665,0.30834202,71219.0,71218.0,0.1783146]
[1717625298674,0.37137887,71219.0,71218.0,0.1783146]
[1717625298856,0.30834202,71219.0,71218.0,0.1783146]
[1717625299055,0.37138416,71219.0,71218.0,0.1783146]
[1717625300515,0.31834202,71219.0,71218.0,0.155]
[1717625300654,0.30834202,71219.0,71218.0,0.155]
[1717625300856,0.31834202,71219.0,71218.0,0.155]
[1717625302176,0.62938699,71219.0,71218.0,0.155]
[1717625302586,0.31834202,71219.0,71218.0,0.155]
[1717625302794,0.31834202,71219.0,71218.0,0.1906705]
[1717625303199,0.62938593,71219.0,71218.0,0.1906705]
[1717625305083,0.62938593,71219.0,71218.0,0.1916165]
[1717625305547,0.71344212,71219.0,71218.0,0.1916165]
[1717625306657,0.71344212,71219.0,71218.0,0.155946]
[1717625306658,0.70344212,71219.0,71218.0,0.155946]
[1717625307865,0.71344212,71219.0,71218.0,0.155946]
[1717625308059,0.62938593,71219.0,71218.0,0.155946]
[1717625309028,0.62938593,71219.0,71218.0,0.002946]
[1717625309449,0.73445617,71219.0,71218.0,0.002946]
[1717625309757,0.62938593,71219.0,71218.0,0.002946]
[1717625310165,0.62938593,71219.0,71218.0,0.0267752]
[1717625310590,0.41104391,71219.0,71218.0,0.3745342]
[1717625310798,0.41104391,71219.0,71218.0,0.2609752]
[1717625311005,0.49518684,71219.0,71218.0,0.3745342]
[1717625311268,0.49518684,71219.0,71218.0,0.3845342]
[1717625311405,0.16310812,71219.0,71218.0,0.3845342]
[1717625311578,0.1,71219.0,71218.0,0.3845342]
[1717625312829,0.06310812,71220.0,71219.0,0.123559]
[1717625313032,0.06310812,71220.0,71219.0,0.16210702]
[1717625313739,0.06310315,71220.0,71219.0,0.16210702]
[1717625314139,0.06310315,71220.0,71219.0,0.16410702]
[1717625314938,0.39516232,71220.0,71219.0,0.16410702]
[1717625315297,0.49516232,71220.0,71219.0,0.16410702]
[1717625316063,0.1631028,71220.0,71219.0,0.16410702]
[1717625316260,0.0631028,71220.0,71219.0,0.16410702]
[1717625316463,0.1312028,71220.0,71219.0,0.16410702]
[1717625316664,0.2312028,71220.0,71219.0,0.16410702]
[1717625317487,0.0631028,71220.0,71219.0,0.16410702]
[1717625317822,0.141259,71226.0,71219.0,0.16410702]
[1717625317823,0.0631028,71221.0,71220.0,0.353359]
[1717625317991,0.0631028,71222.0,71221.0,0.41425363]
[1717625318213,0.0420653,71223.0,71221.0,0.41425363]
[1717625318416,0.0420653,71223.0,71222.0,0.1473882]
[1717625318989,0.0420653,71223.0,71222.0,0.5175942]
[1717625319985,0.0420653,71223.0,71222.0,0.3671882]
[1717625320349,0.0420653,71224.0,71222.0,0.3681882]
[1717625320556,0.0420653,71224.0,71222.0,0.3691882]
[1717625320747,0.0420653,71224.0,71223.0,0.03854802]
[1717625322991,0.0420653,71224.0,71223.0,0.03954802]
[1717625323198,0.0420653,71225.0,71223.0,0.04054802]
[1717625323802,0.0420653,71224.0,71223.0,0.04054802]
[1717625324224,0.0420653,71225.0,71223.0,0.03954802]
[1717625324540,0.0420653,71225.0,71223.0,0.04054802]
[1717625325169,0.0420653,71225.0,71223.0,0.03954802]
[1717625325384,0.0420653,71225.0,71224.0,0.05571472]
[1717625325590,0.11485678,71225.0,71224.0,0.05571472]
[1717625326802,0.11485678,71225.0,71224.0,0.05671472]
[1717625327419,0.07279148,71225.0,71224.0,0.05671472]
[1717625327565,0.07279148,71225.0,71224.0,0.05771472]
[1717625328642,0.0681,71225.0,71224.0,0.05771472]
[1717625329717,0.0681,71225.0,71224.0,0.17127372]
[1717625332304,0.0681,71225.0,71224.0,0.17027372]
[1717625332485,0.0681,71225.0,71224.0,0.17127372]
[1717625333092,0.0681,71225.0,71224.0,0.16927372]
[1717625333306,0.0681,71225.0,71224.0,0.17027372]
[1717625333503,0.0681,71225.0,71224.0,0.05671472]
[1717625333883,0.00086,71226.0,71225.0,0.600559]
[1717625335337,0.00086,71226.0,71225.0,0.881359]
[1717625335749,0.00086,71226.0,71225.0,0.882359]
[1717625336172,0.00086,71226.0,71225.0,0.881359]
[1717625338323,0.00086,71226.0,71225.0,0.981359]
[1717625338658,0.00086,71226.0,71225.0,0.80000165]
[1717625341255,0.00086,71226.0,71225.0,0.80000165]
[1717625348941,0.00086,71226.0,71225.0,0.35714265]
[1717625349158,0.00113,71226.0,71225.0,0.49754265]
[1717625350249,0.00113,71226.0,71225.0,0.61110165]
[1717625350868,0.00113,71226.0,71225.0,0.62110165]
[1717625351320,0.00113,71226.0,71225.0,0.61110165]
[1717625355482,0.00113,71226.0,71225.0,0.62110165]
[1717625355694,0.00113,71226.0,71225.0,0.49754265]
[1717625356319,0.00113,71226.0,71225.0,0.61110165]
[1717625356968,0.00113,71226.0,71225.0,0.49754265]
[1717625357302,0.00113,71226.0,71225.0,0.62110165]
[1717625362226,0.00113,71226.0,71225.0,0.62110165]
[1717625362836,0.00113,71226.0,71225.0,0.61110165]
[1717625363462,0.00113,71226.0,71225.0,0.62110165]
[1717625367316,0.00113,71226.0,71225.0,0.62086965]
[1717625373585,0.00113,71226.0,71225.0,0.521427]
[1717625383350,0.00113,71226.0,71225.0,0.83887793]
[1717625384127,0.00113,71226.0,71225.0,1.20777793]
[1717625386113,0.00113,71226.0,71225.0,1.21477793]
[1717625386262,0.00113,71226.0,71225.0,1.13467793]
[1717625388877,0.00113,71226.0,71225.0,1.15467793]
[1717625391114,0.00113,71226.0,71225.0,1.13467793]
[1717625393581,0.00113,71226.0,71225.0,0.85387793]
[1717625395175,0.00113,71226.0,71225.0,0.368959]
[1717625395698,0.00113,71226.0,71225.0,0.378959]
[1717625396330,0.00113,71226.0,71225.0,0.4508349]
[1717625401986,0.00113,71226.0,71225.0,0.8316349]
[1717625402196,0.00113,71226.0,71225.0,1.0693349]
[1717625404841,0.00113,71226.0,71225.0,0.7894809]
[1717625422211,0.00113,71226.0,71225.0,0.97699983]
[1717625422422,0.00113,71226.0,71225.0,1.22479983]
[1717625427550,0.00113,71226.0,71225.0,1.24479983]
[1717625427759,0.00113,71226.0,71225.0,0.94399983]
[1717625435947,0.00113,71226.0,71225.0,0.94399983]
[1717625454146,0.00113,71226.0,71225.0,1.01678229]
[1717625460203,0.00113,71226.0,71225.0,0.64542329]
[1717625460434,0.00113,71226.0,71225.0,0.75898229]
[1717625460435,0.03893,71226.0,71225.0,0.75898229]
[1717625460859,0.03893,71226.0,71225.0,0.76898229]
[1717625461208,0.00113,71226.0,71225.0,0.76898229]
[1717625465662,0.00113,71226.0,71225.0,1.00368229]
[1717625466518,0.00113,71226.0,71225.0,0.93089983]
[1717625466725,0.00113,71226.0,71225.0,1.00368241]
[1717625472424,0.00113,71226.0,71225.0,1.00368241]
[1717625474343,0.00113,71226.0,71225.0,1.28438241]
[1717625476731,0.00113,71226.0,71225.0,1.28438256]
[1717625477743,0.00113,71226.0,71225.0,1.27438256]
[1717625477959,0.00113,71226.0,71225.0,1.37248256]
[1717625478574,0.00113,71226.0,71225.0,1.65328256]
[1717625478919,0.00113,71226.0,71225.0,1.69566069]
[1717625479123,0.00113,71226.0,71225.0,1.76376069]
[1717625482994,0.00113,71226.0,71225.0,1.77675851]
[1717625486315,0.00113,71226.0,71225.0,1.76628256]
[1717625488196,0.00113,71226.0,71225.0,2.04708256]
[1717625488355,0.00113,71226.0,71225.0,1.97898256]
[1717625488572,0.00113,71226.0,71225.0,2.04708256]
[1717625491295,0.00113,71226.0,71225.0,1.69818256]
[1717625491522,0.00113,71226.0,71225.0,1.76628256]
[1717625498156,0.00243738,71234.0,71233.0,0.243559]
[1717625498333,0.00243738,71234.0,71233.0,1.96920456]
[1717625498544,0.00243738,71234.0,71233.0,2.19530456]
[1717625499971,0.00243738,71234.0,71233.0,2.22330456]
[1717625500179,0.00243738,71234.0,71233.0,2.30930456]
[1717625500515,3.8e-07,71234.0,71233.0,2.69007256]
[1717625500862,3.8e-07,71234.0,71233.0,2.70406141]
[1717625502704,3.8e-07,71234.0,71233.0,2.69006141]
[1717625502901,3.8e-07,71234.0,71233.0,2.67606141]
[1717625503113,3.8e-07,71234.0,71233.0,2.70406141]
[1717625503315,3.8e-07,71234.0,71233.0,2.69006141]
[1717625503744,3.8e-07,71234.0,71233.0,2.78957081]
[1717625504379,3.8e-07,71234.0,71233.0,2.80357081]
[1717625504588,3.8e-07,71234.0,71233.0,2.78957081]
[1717625505004,3.8e-07,71234.0,71233.0,2.80357081]
[1717625505776,3.8e-07,71234.0,71233.0,2.78957081]
[1717625506620,3.8e-07,71234.0,71233.0,2.80357081]
[1717625508184,3.8e-07,71234.0,71233.0,2.80659829]
[1717625509135,3.8e-07,71234.0,71233.0,2.80209129]
[1717625509366,3.8e-07,71234.0,71233.0,2.81609129]
[1717625510147,3.8e-07,71234.0,71233.0,2.83009129]
[1717625510352,3.8e-07,71234.0,71233.0,2.81609129]
[1717625510790,3.8e-07,71234.0,71233.0,2.83009129]
[1717625511195,3.8e-07,71234.0,71233.0,2.80209129]
[1717625511631,3.8e-07,71234.0,71233.0,2.81609129]
[1717625512792,3.8e-07,71234.0,71233.0,2.83009129]
[1717625512995,0.005,71244.0,71243.0,1.62611]
[1717625512996,3.8e-07,71244.0,71243.0,1.62611]
[1717625513198,3.8e-07,71244.0,71243.0,2.39334996]
[1717625514219,3.8e-07,71244.0,71243.0,2.40734822]
[1717625514841,3.8e-07,71244.0,71243.0,2.39334822]
[1717625516045,3.8e-07,71244.0,71243.0,2.40734822]
[1717625516541,3.8e-07,71244.0,71243.0,2.42134822]
[1717625521518,3.8e-07,71244.0,71243.0,2.70207722]
[1717625524844,3.8e-07,71244.0,71243.0,2.62930738]
[1717625525049,3.8e-07,71244.0,71243.0,2.70204552]
[1717625525666,3.8e-07,71244.0,71243.0,2.71846645]
[1717625525927,3.8e-07,71244.0,71243.0,2.81846645]
[1717625526919,3.8e-07,71244.0,71243.0,2.81846536]
[1717625527742,0.002,71249.0,71248.0,0.583913]
[1717625527743,3.9e-07,71249.0,71248.0,0.583913]
[1717625527944,3.9e-07,71249.0,71248.0,1.70486328]
[1717625528146,3.9e-07,71249.0,71248.0,2.26628128]
[1717625528353,3.9e-07,71249.0,71248.0,2.19354423]
[1717625528567,3.9e-07,71249.0,71248.0,2.26628067]
[1717625529842,3.9e-07,71249.0,71248.0,2.56098967]
[1717625529996,3.9e-07,71249.0,71248.0,2.38028067]
[1717625530496,3.9e-07,71249.0,71248.0,2.39428067]
[1717625530659,3.9e-07,71249.0,71248.0,2.38028067]
[1717625530889,3.9e-07,71249.0,71248.0,2.74698967]
[1717625531057,3.9e-07,71249.0,71248.0,2.76098967]